bitfinex/quotes_SOLUSD_20240626
["timestamp","ask_amount","ask_price","bid_price","bid_amount"]
[1719420651637,18.3927,135.93,135.84,0.17]
[1719420652027,7.3581,135.91,135.86,7.3604]
[1719420652221,15.7111,135.94,135.87,7.3599]
[1719420652222,7.3573,135.92,135.87,7.3599]
[1719420652736,273.9887,135.96,135.87,35.0632]
[1719420652945,7.357,135.93,135.88,6.8592]
[1719420653139,27.3572,135.92,135.87,42.4229]
[1719420653319,7.3572,135.92,135.87,42.4229]
[1719420653722,7.3572,135.92,135.87,35.0632]
[1719420654441,23.83268162,135.95,135.87,35.0632]
[1719420654637,7.3589,135.89,135.84,18.573]
[1719420655137,7.3595,135.88,135.83,7.3621]
[1719420655336,7.3601,135.87,135.82,23.2414]
[1719420655547,7.3605,135.86,135.82,15.8789]
[1719420655720,7.3601,135.87,135.82,23.2415]
[1719420655925,7.3596,135.88,135.83,7.362]
[1719420656136,20.0,135.87,135.84,7.3615]
[1719420656444,20.0,135.87,135.83,18.405]
[1719420656742,27.3604,135.87,135.83,7.3621]
[1719420656935,20.0,135.87,135.83,7.3621]
[1719420657138,20.0,135.87,135.82,33.7852]
[1719420657139,27.3603,135.87,135.82,18.4063]
[1719420657445,27.3603,135.87,135.82,25.7686]
[1719420657821,20.0,135.87,135.82,18.4063]
[1719420658321,7.3608,135.86,135.82,18.4063]
[1719420658537,7.3621,135.83,135.78,18.4109]
[1719420658842,7.3615,135.85,135.8,7.3637]
[1719420659642,7.3606,135.86,135.81,7.363]
[1719420659942,38.3968,135.9,135.82,7.3621]
[1719420660238,38.3968,135.9,135.81,7.363]
[1719420660444,7.3608,135.86,135.82,7.3626]
[1719420660628,7.36,135.87,135.82,7.3626]
[1719420661145,38.3968,135.9,135.81,7.3631]
[1719420661146,7.3606,135.86,135.81,7.3631]
[1719420661354,7.3611,135.85,135.8,25.7725]
[1719420661716,36.7945,135.89,135.78,16.5854]
[1719420661920,7.3619,135.84,135.8,7.3637]
[1719420662120,7.3619,135.84,135.78,34.9972]
[1719420662121,18.5697,135.88,135.81,7.3631]
[1719420662342,7.361,135.85,135.8,25.7727]
[1719420662749,7.3607,135.86,135.8,18.409]
[1719420663047,7.3628,135.82,135.78,16.5854]
[1719420663222,7.3617,135.84,135.79,7.3637]
[1719420663546,7.3633,135.81,135.76,8.2171774]
[1719420663746,7.3628,135.82,135.77,7.3652]
[1719420663950,33.9912,135.84,135.76,0.8513774]
[1719420664241,20.0,135.89,135.78,7.3647]
[1719420664242,27.3623,135.83,135.78,7.3647]
[1719420664441,15.587,135.87,135.77,24.9095]
[1719420664644,15.587,135.87,135.78,7.3644]
[1719420664645,7.3625,135.83,135.78,7.3644]
[1719420664821,15.587,135.87,135.82,7.3626]
[1719420665022,7.362,135.84,135.79,7.3642]
[1719420665238,0.17,135.88,135.79,7.3642]
[1719420665426,38.3974,135.89,135.8,18.4089]
[1719420665619,7.3603,135.87,135.82,7.3625]
[1719420665819,7.3605,135.86,135.8,18.4089]
[1719420666022,18.3974,135.89,135.82,7.3626]
[1719420666023,7.3601,135.87,135.82,7.3626]
[1719420666435,7.359,135.89,135.84,7.3612]
[1719420666845,7.3594,135.88,135.83,7.3619]
[1719420667144,7.359,135.89,135.84,7.3614]
[1719420667451,27.3594,135.88,135.83,7.362]
[1719420667650,20.0,135.88,135.84,7.3615]
[1719420668146,20.0,135.88,135.82,18.4062]
[1719420668361,20.0,135.9,135.82,18.4062]
[1719420668727,49.79508215,135.9,135.82,18.4062]
[1719420668961,3.83268162,135.89,135.82,18.4062]
[1719420669447,3.83268162,135.89,135.77,43.3216]
[1719420669448,3.83268162,135.89,135.77,6.4964]
[1719420669658,18.5697,135.88,135.79,7.3642]
[1719420669831,7.3617,135.84,135.79,7.3642]
[1719420670151,20.0,135.87,135.8,7.3637]
[1719420670152,7.3612,135.85,135.8,7.3637]
[1719420670331,7.3618,135.84,135.79,25.7743]
[1719420670534,7.3618,135.84,135.8,7.3637]
[1719420670748,7.3612,135.85,135.8,7.3637]
[1719420671322,7.3605,135.86,135.81,7.3632]
[1719420671527,27.3613,135.85,135.8,7.3636]
[1719420671738,7.3613,135.85,135.8,7.3636]
[1719420672149,7.3613,135.85,135.81,7.3631]
[1719420672348,7.3607,135.86,135.81,7.3631]
[1719420672552,20.0,135.85,135.81,7.3631]
[1719420672953,20.0,135.85,135.82,7.3624]
[1719420673151,20.0,135.85,135.82,7.3626]
[1719420673352,7.3606,135.86,135.81,25.7703]
[1719420673863,7.3613,135.85,135.81,18.4073]
[1719420674652,7.3605,135.86,135.81,18.4073]
[1719420674858,7.3605,135.86,135.81,25.7703]
[1719420675241,7.3611,135.85,135.81,25.7703]
[1719420675431,7.3607,135.86,135.81,25.7703]
[1719420675636,7.3607,135.86,135.82,7.3624]
[1719420675850,11.19278162,135.87,135.82,7.3624]
[1719420676059,11.19278162,135.87,135.81,18.4073]
[1719420676060,20.0,135.86,135.83,7.3619]
[1719420676278,20.0,135.86,135.82,7.3624]
[1719420676949,27.3605,135.86,135.81,25.7704]
[1719420677851,27.3605,135.86,135.82,7.3625]
[1719420678159,20.0,135.86,135.8,7.3635]
[1719420678360,23.83268162,135.87,135.83,7.362]
[1719420678536,7.3602,135.87,135.82,18.4064]
[1719420678734,27.3609,135.86,135.82,18.4064]
[1719420678937,20.0,135.86,135.82,18.4064]
[1719420679336,27.3607,135.86,135.82,18.4064]
[1719420679757,20.0,135.86,135.82,25.7688]
[1719420680059,7.3596,135.88,135.84,7.3614]
[1719420680266,7.3596,135.88,135.83,7.3618]
[1719420680464,16.4881,135.91,135.84,18.4034]
[1719420680666,7.359,135.89,135.85,7.3606]
[1719420680851,16.35,135.96,135.85,6.4369]
[1719420681166,18.3927,135.96,135.86,0.17]
[1719420681372,7.3566,135.94,135.89,7.3587]
[1719420681569,20.0,135.93,135.89,7.3587]
[1719420681866,6.3095,135.97,135.88,18.5683]
[1719420681867,18.3845,135.99,135.9,18.3949]
[1719420682055,7.3553,135.96,135.91,7.5273]
[1719420682372,20.0,135.95,135.91,7.5273]
[1719420682767,7.3553,135.96,135.91,7.5273]
[1719420683962,7.3556,135.95,135.9,25.753]
[1719420685177,7.3556,135.95,135.91,7.3577]
[1719420685351,7.3556,135.95,135.9,18.3949]
[1719420685553,7.3556,135.95,135.9,25.7532]
[1719420686065,7.3544,135.98,135.93,7.3566]
[1719420686272,27.3549,135.97,135.92,25.7498]
[1719420686861,7.68286866,136.0,135.94,18.3902]
[1719420687064,7.3541,135.98,135.94,25.7462]
[1719420687448,7.3541,135.98,135.87,58.818]
[1719420687449,36.7655,136.0,135.87,36.798]
[1719420687653,7.3551,135.96,135.91,18.3939]
[1719420687948,7.68229811,136.0,135.91,18.3939]
[1719420687949,33.9942,136.01,135.93,18.3914]
[1719420688152,20.0,136.0,135.91,6.1398]
[1719420688368,20.0,136.0,135.93,7.3566]
[1719420688559,20.0,136.0,135.92,25.7496]
[1719420688560,7.3547,135.97,135.92,25.7496]
[1719420689253,7.3551,135.96,135.92,25.7496]
[1719420689458,7.3547,135.97,135.92,25.7496]
[1719420689975,7.3541,135.98,135.93,7.3566]
[1719420690171,20.0,135.97,135.93,7.3566]
[1719420690374,27.3545,135.97,135.93,7.3566]
[1719420691168,7.68127234,136.02,135.95,7.3554]
[1719420691356,20.0,136.01,135.95,7.3554]
[1719420691552,7.3524,136.01,135.96,18.3875]
[1719420691860,7.3524,136.01,135.97,7.3545]
[1719420692183,27.352,136.02,135.97,7.3545]
[1719420692402,7.3525,136.01,135.97,18.386]
[1719420692562,7.3525,136.01,135.97,25.7405]
[1719420694190,27.352,136.02,135.97,25.7405]
[1719420694484,7.3524,136.01,135.97,25.7405]
[1719420694782,7.353,136.0,135.96,7.355]
[1719420695160,20.0,136.02,135.98,6.4394]
[1719420695456,38.3744,136.06,135.98,24.8235]
[1719420696182,20.0,136.06,135.98,24.8235]
[1719420696363,20.0,136.07,136.03,7.3511]
[1719420696557,7.3492,136.07,136.03,7.3511]
[1719420696762,7.3488,136.08,136.04,7.3505]
[1719420696961,7.3496,136.07,136.02,41.1605]
[1719420697260,18.3671,136.12,136.03,7.3509]
[1719420697467,18.3689,136.1,136.02,33.8091]
[1719420697689,7.3495,136.07,136.02,41.1604]
[1719420697860,7.3488,136.08,136.03,7.3511]
[1719420698062,18.3689,136.1,136.04,18.3765]
[1719420698063,7.3479,136.1,136.04,18.3765]
[1719420698261,20.0,136.09,136.02,15.4296]
[1719420698578,18.3677,136.11,136.03,0.17]
[1719420698776,18.3677,136.11,136.02,22.7813]
[1719420698777,20.0,136.1,136.02,22.7813]
[1719420698960,18.3707,136.09,136.02,15.4296]
[1719420699159,7.3506,136.05,136.02,15.4296]
[1719420699481,18.3707,136.09,136.0,25.7347]
[1719420699785,7.3499,136.06,136.01,7.3522]
[1719420700356,7.3499,136.06,136.02,7.3517]
[1719420700686,7.3492,136.07,136.02,19.84618985]
[1719420700983,27.3487,136.08,136.03,0.17]
[1719420701189,27.3487,136.08,136.03,7.5209]
[1719420701414,27.3487,136.08,136.02,18.3792]
[1719420701415,7.3497,136.06,136.02,25.7308]
[1719420701770,7.3497,136.06,136.02,18.3792]
[1719420701969,7.3502,136.05,136.0,7.3528]
[1719420702170,7.3503,136.05,136.0,8.82000555]
[1719420703060,7.3503,136.05,136.01,7.3523]
[1719420703278,7.3494,136.07,136.02,7.3513]
[1719420703485,20.0,136.06,136.02,7.3513]
[1719420703677,20.0,136.06,136.03,7.3512]
[1719420703865,20.0,136.06,136.01,25.7323]
[1719420703866,27.3498,136.06,136.01,25.7323]
[1719420704283,7.3503,136.05,136.01,18.3803]
[1719420704469,7.3503,136.05,136.01,25.7325]
[1719420704674,7.3513,136.03,135.98,76.6936]
[1719420704976,7.3504,136.05,136.0,7.3524]
[1719420705286,20.0,136.06,136.0,7.3524]
[1719420705862,20.0,136.06,135.98,47.2784]
[1719420705863,18.3757,136.05,135.98,47.2784]
[1719420706083,7.3511,136.04,136.0,7.3529]
[1719420706282,7.3511,136.04,135.99,7.3533]
[1719420706473,7.3514,136.03,135.99,7.3533]
[1719420706786,7.3514,136.03,135.98,25.7377]
[1719420707091,7.3514,136.03,135.99,7.3533]
[1719420707270,7.3509,136.04,136.0,7.3528]
[1719420707478,20.0,136.06,136.0,18.3821]
[1719420707670,7.3506,136.05,136.0,25.7346]
[1719420707980,20.0,136.04,136.0,25.7346]
[1719420708191,20.0,136.04,136.01,7.3521]
[1719420708562,20.0,136.04,136.02,7.3516]
[1719420708869,15.3808,136.08,136.03,7.3507]
[1719420708870,7.3488,136.08,136.03,7.3507]
[1719420709069,20.0,136.07,136.03,7.3507]
[1719420709887,20.0,136.07,136.01,6.3796]
[1719420709888,7.3481,136.09,136.04,25.7266]
[1719420710072,7.3481,136.09,136.04,18.3764]
[1719420710270,7.3481,136.09,136.05,7.3501]
[1719420710471,7.3486,136.08,136.04,25.727]
[1719420710875,34.1067,136.12,136.05,7.3502]
[1719420711093,7.3487,136.08,136.04,25.7268]
[1719420711462,273.9653,136.13,136.05,7.3501]
[1719420711663,7.347,136.11,136.07,7.349]
[1719420711873,27.3476,136.1,136.06,18.3741]
[1719420712394,20.0,136.1,136.05,7.35]
[1719420712765,27.3477,136.1,136.06,7.3496]
[1719420713689,20.0,136.1,136.07,7.349]
[1719420714075,3.83268162,136.13,136.09,18.3694]
[1719420714281,15.2758,136.2,136.1,0.17]
[1719420714491,7.3443,136.16,136.08,22.6827]
[1719420714791,7.3443,136.16,136.12,7.3462]
[1719420714973,7.3439,136.17,136.12,7.3462]
[1719420715173,15.2758,136.2,136.13,0.17]
[1719420715476,15.2758,136.2,136.13,7.3457]
[1719420715477,7.3441,136.17,136.13,7.3457]
[1719420716075,7.3441,136.17,136.12,25.712]
[1719420716274,7.3443,136.16,136.12,25.712]
[1719420716672,7.3438,136.17,136.12,25.712]
[1719420716973,7.3438,136.17,136.13,7.3458]
[1719420717176,33.6315,136.2,136.11,7.3465]
[1719420717385,33.6315,136.2,136.09,18.3694]
[1719420717386,18.3583,136.18,136.1,7.3474]
[1719420717697,7.3448,136.15,136.1,8.03649568]
[1719420717996,18.3583,136.18,136.1,0.68904505]
[1719420718174,7.3454,136.14,136.1,7.3473]
[1719420718376,7.3445,136.16,136.11,7.3469]
[1719420718570,7.3445,136.16,136.12,7.3464]
[1719420718894,7.3439,136.17,136.13,7.3458]
[1719420719099,20.0,136.16,136.13,7.3458]
[1719420719689,27.3443,136.16,136.11,18.3672]
[1719420719896,27.3443,136.16,136.11,25.714]
[1719420720276,20.0,136.16,136.12,7.3463]
[1719420720598,7.3441,136.17,136.13,7.3459]
[1719420720791,20.0,136.16,136.13,7.3459]
[1719420720996,20.0,136.16,136.12,7.3462]
[1719420721492,15.2758,136.2,136.15,7.3447]
[1719420721796,20.0,136.19,136.12,0.17]
[1719420722098,27.3422,136.2,136.14,18.363]
[1719420722304,7.343,136.19,136.14,25.7079]
[1719420722504,33.767,136.23,136.14,18.363]
[1719420722682,15.4147,136.23,136.13,0.17]
[1719420722884,7.3427,136.19,136.14,7.3449]
[1719420723083,7.3427,136.19,136.12,0.34]
[1719420723404,7.3423,136.2,136.12,0.34]
[1719420723583,19.2016774,136.24,136.16,7.3438]
[1719420724177,7.3421,136.2,136.15,25.7066]
[1719420724378,18.3528,136.22,136.14,7.5151]
[1719420724603,7.3428,136.19,136.15,7.3447]
[1719420724810,7.3426,136.2,136.15,7.5147]
[1719420724986,7.3429,136.19,136.15,0.17]
[1719420725299,7.3423,136.2,136.15,7.5146]
[1719420725509,20.0,136.19,136.15,7.5146]
[1719420726101,20.0,136.19,136.16,7.3442]
[1719420726601,20.0,136.19,136.15,7.5146]
[1719420726778,20.0,136.19,136.16,7.3442]
[1719420727184,20.0,136.2,136.16,7.3442]
[1719420727394,27.3423,136.2,136.16,7.3442]
[1719420727591,7.3437,136.17,136.13,7.3456]
[1719420727910,7.3432,136.18,136.14,7.3451]
[1719420728209,7.3428,136.19,136.14,7.3451]
[1719420728407,7.3428,136.19,136.15,7.3447]
[1719420728776,27.3423,136.2,136.16,7.3442]
[1719420728981,27.3423,136.2,136.15,25.7065]
[1719420729181,7.3447,136.16,136.12,24.6604]
[1719420729397,7.3448,136.15,136.12,6.2944]
[1719420729593,7.3448,136.15,136.11,7.3466]
[1719420729793,15.5973,136.19,136.09,25.7164]
[1719420729990,20.0,136.14,136.09,18.3688]
[1719420730199,7.347,136.11,136.08,22.397]
[1719420730504,7.3478,136.1,136.06,25.7224]
[1719420730803,7.3471,136.11,136.06,25.7224]
[1719420731008,7.3471,136.11,136.07,7.349]
[1719420731207,7.3466,136.12,136.08,7.3484]
[1719420731432,20.0,136.11,136.08,7.3484]
[1719420731599,20.0,136.11,136.07,7.3489]
[1719420731802,22.2574,136.19,136.05,36.7496]
[1719420732100,20.0,136.18,136.06,22.02]
[1719420732306,20.0,136.18,136.14,18.3633]
[1719420732602,27.3433,136.18,136.14,18.3633]
[1719420732803,27.3433,136.18,136.14,25.2084]
[1719420733008,20.0,136.18,136.15,7.3446]
[1719420733507,27.3432,136.18,136.14,17.8633]
[1719420733886,27.3432,136.18,136.14,25.2085]
[1719420734089,27.3432,136.18,136.14,17.8633]
[1719420734295,7.3439,136.17,136.12,7.3462]
[1719420734581,20.0,136.18,136.15,7.3443]
[1719420734890,20.0,136.19,136.17,7.3436]
[1719420735208,27.3419,136.21,136.17,18.3591]
[1719420735403,20.0,136.21,136.17,25.7027]
[1719420735912,27.3418,136.21,136.17,18.3591]
[1719420736215,20.0,136.21,136.15,7.3446]
[1719420736391,20.0,136.22,136.15,7.3446]
[1719420736592,18.3584,136.18,136.11,18.3665]
[1719420736795,7.3452,136.15,136.11,18.3665]
[1719420736993,7.3444,136.16,136.11,25.7133]
[1719420737280,7.3444,136.16,136.08,58.9634]
[1719420737281,7.345,136.15,136.1,7.3473]
[1719420737685,7.345,136.15,136.11,7.3469]
[1719420737885,27.3454,136.14,136.1,25.716]
[1719420738108,7.345,136.15,136.1,18.3686]
[1719420738307,20.0,136.14,136.1,18.3686]
[1719420738704,20.0,136.14,136.11,7.3466]
[1719420738888,20.0,136.14,136.1,18.3686]
[1719420738889,20.0,136.15,136.12,7.346]
[1719420739089,20.0,136.15,136.13,7.3457]
[1719420739294,20.0,136.17,136.13,7.3457]
[1719420739812,20.0,136.17,136.14,18.3632]
[1719420740116,15.1033,136.2,136.15,7.3446]
[1719420740117,20.0,136.18,136.15,7.3446]
[1719420740311,20.0,136.19,136.16,7.3441]
[1719420740906,3.83268162,136.21,136.16,18.3607]
[1719420741218,21.9817,136.23,136.17,7.5136]
[1719420741219,15.9682,136.23,136.17,7.5136]
[1719420741394,20.0,136.22,136.17,7.5136]
[1719420741592,7.3418,136.21,136.17,0.17]
[1719420741987,20.0,136.22,136.16,7.3439]
[1719420742192,20.0,136.22,136.15,18.361]
[1719420742390,7.3419,136.21,136.17,7.3437]
[1719420742585,7.3419,136.21,136.16,7.3442]
[1719420742890,27.3412,136.22,136.17,7.3433]
[1719420743091,27.3412,136.22,136.17,18.3591]
[1719420743916,20.0,136.22,136.18,7.3428]
[1719420744301,20.0,136.22,136.19,7.3426]
[1719420744906,27.3405,136.23,136.19,18.3562]
[1719420745104,7.3412,136.22,136.18,7.343]
[1719420745817,27.3406,136.23,136.18,7.343]
[1719420746126,27.3406,136.23,136.19,7.3426]
[1719420746442,20.0,136.23,136.19,7.3426]
[1719420747425,27.3405,136.23,136.19,7.3426]
[1719420747586,20.0,136.23,136.2,7.342]
[1719420747787,27.3405,136.23,136.19,7.3425]
[1719420748316,27.3406,136.23,136.19,7.3425]
[1719420748723,20.0,136.23,136.18,18.3578]
[1719420748896,7.3414,136.22,136.18,18.3578]
[1719420749094,7.3414,136.22,136.18,25.7009]
[1719420749423,7.3407,136.23,136.18,25.7009]
[1719420749614,20.0,136.22,136.18,25.7009]
[1719420749824,20.8513774,136.24,136.15,40.1032]
[1719420750118,7.3417,136.21,136.16,7.3438]
[1719420750293,20.0,136.2,136.17,7.3436]
[1719420750498,20.0,136.2,136.17,25.703]
[1719420751020,20.0,136.2,136.17,18.3594]
[1719420751227,20.0,136.2,136.15,18.362]
[1719420751452,7.3419,136.21,136.16,7.344]
[1719420751627,20.0,136.2,136.16,7.344]
[1719420754008,3.83268162,136.23,136.19,25.6985]
[1719420754327,11.17318162,136.23,136.19,25.6985]
[1719420754527,20.0,136.22,136.19,25.6985]
[1719420755025,7.3416,136.21,136.17,7.3436]
[1719420755431,3.83268162,136.23,136.16,18.3595]
[1719420755432,20.0,136.2,136.16,18.3595]
[1719420755727,20.0,136.2,136.17,7.3432]
[1719420755892,20.0,136.2,136.18,7.343]
[1719420756096,11.17338162,136.23,136.18,25.701]
[1719420756298,20.0,136.22,136.19,7.3424]
[1719420756519,20.0,136.22,136.18,25.7009]
[1719420756898,27.3411,136.22,136.18,25.7009]
[1719420757321,20.0,136.22,136.18,18.358]
[1719420757504,3.83268162,136.23,136.18,18.358]
[1719420757715,31.17328162,136.23,136.19,7.3426]
[1719420757920,20.0,136.22,136.19,7.3426]
[1719420759534,20.0,136.22,136.18,18.358]
[1719420759739,20.0,136.22,136.18,25.701]
[1719420760044,27.3411,136.22,136.18,18.358]
[1719420760638,7.343,136.19,136.14,7.345]
[1719420760840,7.3435,136.18,136.14,7.3452]
[1719420761143,18.3555,136.2,136.12,24.569]
[1719420761330,7.3447,136.16,136.12,18.3648]
[1719420761542,7.3439,136.17,136.12,18.3648]
[1719420761736,7.3434,136.18,136.13,7.3456]
[1719420761928,20.0,136.17,136.14,18.3633]
[1719420762122,26.02318162,136.2,136.14,18.3633]
[1719420762319,20.0,136.19,136.14,25.7085]
[1719420762519,27.3428,136.19,136.14,25.7085]
[1719420763543,7.3432,136.18,136.14,18.3633]
[1719420763952,27.3427,136.19,136.14,18.3633]
[1719420764448,27.3427,136.19,136.14,25.7085]
[1719420765241,7.3432,136.18,136.14,25.7085]
[1719420765749,27.3431,136.19,136.14,25.7085]
[1719420766126,20.0,136.19,136.15,7.3443]
[1719420766635,7.3433,136.18,136.14,25.7084]
[1719420766959,20.0,136.19,136.14,25.7084]
[1719420767163,0.34,136.18,136.09,7.3479]
[1719420767457,0.34,136.18,136.08,32.1713]
[1719420767458,7.346,136.13,136.08,32.1713]
[1719420767748,7.346,136.13,136.08,25.7188]
[1719420767964,20.0,136.12,136.08,25.7188]
[1719420768253,20.0,136.12,136.09,7.348]
[1719420768547,20.0,136.13,136.09,7.348]
[1719420768749,20.0,136.13,136.08,18.3706]
[1719420768922,20.0,136.13,136.1,18.3682]
[1719420769124,20.0,136.15,136.11,7.3467]
[1719420769849,20.0,136.15,136.1,18.3682]
[1719420770049,7.344,136.17,136.12,7.346]
[1719420770350,20.0,136.16,136.12,7.346]
[1719420771026,27.3444,136.16,136.12,7.346]
[1719420771425,7.3449,136.15,136.11,7.3468]
[1719420771621,20.0,136.16,136.07,55.1179]
[1719420771827,7.346,136.13,136.07,55.1179]
[1719420772031,7.3456,136.14,136.09,7.348]
[1719420772329,20.0,136.13,136.08,7.3483]
[1719420772528,27.346,136.13,136.08,7.3483]
[1719420772939,7.3466,136.12,136.08,7.3483]
[1719420773143,27.346,136.13,136.09,7.348]
[1719420775156,20.0,136.13,136.1,7.3474]
[1719420776168,20.0,136.14,136.11,7.3468]
[1719420776527,27.3454,136.14,136.1,7.3473]
[1719420778760,7.3468,136.12,136.05,6.2814]
[1719420779055,36.2184,136.14,136.06,18.3735]
[1719420779353,7.347,136.11,136.07,7.349]
[1719420779654,7.3477,136.1,136.06,18.3735]
[1719420780038,7.3478,136.1,136.06,25.723]
[1719420780237,0.17,136.13,136.07,7.3488]
[1719420780442,7.3469,136.12,136.07,7.3488]
[1719420780662,20.0,136.11,136.07,7.3488]
[1719420780953,36.2184,136.14,136.08,18.3708]
[1719420781352,36.2184,136.14,136.07,7.3489]
[1719420781735,7.3472,136.11,136.07,7.3489]
[1719420781946,7.3472,136.11,136.06,18.3741]
[1719420781947,7.3466,136.12,136.08,7.3485]
[1719420782252,43.5639,136.14,136.08,18.3713]
[1719420782566,7.3461,136.13,136.08,25.7196]
[1719420782736,20.0,136.12,136.08,25.7196]
[1719420783065,27.3465,136.12,136.08,25.7196]
[1719420783241,20.0,136.12,136.05,6.2814]
[1719420783434,7.3453,136.14,136.1,25.7155]
[1719420783635,20.0,136.13,136.1,25.7155]
[1719420783849,7.3446,136.16,136.1,18.3683]
[1719420784033,20.0,136.15,136.12,7.346]
[1719420784234,7.3445,136.16,136.12,7.346]
[1719420784442,16.4008,136.18,136.11,7.3468]
[1719420784443,7.3448,136.15,136.11,7.3468]
[1719420784646,7.3445,136.16,136.11,7.3468]
[1719420784845,7.3445,136.16,136.11,7.3465]
[1719420785061,16.4008,136.18,136.1,25.7156]
[1719420785361,7.3471,136.11,136.07,18.3716]
[1719420785745,7.3466,136.12,136.08,7.3485]
[1719420785942,18.3626,136.15,136.09,7.348]
[1719420785943,20.0,136.11,136.09,7.348]
[1719420786149,20.0,136.11,136.1,7.3475]
[1719420786448,34.7598,136.18,136.1,25.7162]
[1719420786449,27.3456,136.14,136.1,25.7162]
[1719420786642,27.3456,136.14,136.1,18.3688]
[1719420786643,7.3459,136.13,136.1,18.3688]
[1719420786862,20.0,136.12,136.07,25.7207]
[1719420787160,20.0,136.12,136.06,7.3495]
[1719420787349,26.6372,136.13,136.05,25.7255]
[1719420787547,26.6372,136.13,136.06,7.3496]
[1719420787748,7.3473,136.11,136.06,7.3496]
[1719420787950,26.6372,136.13,136.02,6.5201]
[1719420788268,7.3498,136.06,136.02,6.5201]
[1719420788649,7.3502,136.05,136.01,25.733]
[1719420788838,7.3499,136.06,136.01,25.733]
[1719420789038,7.3493,136.07,136.01,18.3808]
[1719420789237,20.0,136.06,136.01,18.3808]
[1719420789455,20.0,136.06,136.02,7.3516]
[1719420789656,20.0,136.06,136.03,7.3511]
[1719420790075,20.0,136.09,136.02,7.3517]
[1719420790362,0.17,136.08,136.02,7.3517]
[1719420790765,7.3491,136.07,136.02,7.3517]
[1719420790965,20.0,136.06,136.02,7.3517]
[1719420792567,27.3497,136.06,136.02,7.3517]
[1719420792778,20.0,136.06,136.0,15.8253]
[1719420792937,7.3514,136.03,135.98,32.214]
[1719420793142,20.0,136.02,135.99,7.3532]
[1719420793344,42.045,136.02,135.95,18.3878]
[1719420793652,27.352,136.02,135.97,25.7403]
[1719420794055,20.0,136.02,135.97,18.3863]
[1719420794364,20.0,136.02,135.98,7.3539]
[1719420794572,20.0,136.02,135.99,18.3836]
[1719420794741,20.0,136.05,136.01,18.3808]
[1719420794948,20.0,136.07,136.03,7.3512]
[1719420795139,27.3493,136.07,136.02,7.3516]
[1719420795553,20.0,136.07,136.03,7.3512]
[1719420795961,27.3492,136.07,136.03,7.3512]
[1719420796343,20.0,136.07,136.01,18.3808]
[1719420796550,20.0,136.09,136.01,18.3808]
[1719420796754,7.3491,136.08,136.03,7.3509]
[1719420796955,20.0,136.07,136.03,7.3509]
[1719420797143,20.0,136.07,136.03,18.3779]
[1719420797346,27.3495,136.07,136.03,18.3779]
[1719420797945,20.0,136.07,136.03,25.7287]
[1719420798266,27.3491,136.07,136.03,25.7287]
[1719420799371,7.3506,136.05,136.02,0.17]
[1719420799559,7.3508,136.04,136.0,18.381]
[1719420799758,7.3508,136.04,136.0,25.7339]
[1719420800273,7.3504,136.05,136.0,25.7339]